bitfinex/quotes_BTCUSD_20250601
["timestamp","ask_amount","ask_price","bid_price","bid_amount"]
[1748786608314,0.02887617,104390.0,104380.0,0.72528772]
[1748786608579,0.02887617,104390.0,104380.0,0.68201599]
[1748786608783,0.02887617,104390.0,104380.0,0.67528772]
[1748786608981,0.02887617,104390.0,104380.0,0.68201599]
[1748786609206,0.02887617,104390.0,104380.0,1.11561947]
[1748786609407,0.02887617,104390.0,104380.0,1.12234774]
[1748786609769,0.00971854,104390.0,104380.0,1.16561947]
[1748786610002,0.00971854,104390.0,104380.0,1.18191947]
[1748786611029,0.00971854,104390.0,104380.0,1.18864575]
[1748786611233,0.00971854,104390.0,104380.0,1.18191947]
[1748786611466,0.01929735,104390.0,104380.0,1.23195282]
[1748786611612,0.00971854,104390.0,104380.0,1.18191947]
[1748786612012,0.00971854,104390.0,104380.0,1.63679207]
[1748786612013,0.00013991,104390.0,104380.0,1.63679207]
[1748786612651,0.00013991,104390.0,104380.0,1.97679207]
[1748786613028,0.00013991,104390.0,104380.0,2.03351434]
[1748786613231,0.00013991,104390.0,104380.0,1.59617132]
[1748786613457,0.00013991,104390.0,104380.0,1.54817132]
[1748786613661,0.00013991,104390.0,104380.0,1.55489236]
[1748786613866,0.00013991,104390.0,104380.0,1.26209231]
[1748786614091,0.00013991,104390.0,104380.0,1.68813132]
[1748786614323,0.00013991,104390.0,104380.0,1.63813132]
[1748786614508,0.00013991,104390.0,104380.0,1.58813132]
[1748786614734,0.00013991,104390.0,104380.0,1.64485037]
[1748786614965,0.00013991,104390.0,104380.0,1.58813132]
[1748786615192,0.00013991,104390.0,104380.0,1.63813132]
[1748786616306,0.00013991,104390.0,104380.0,1.58813132]
[1748786616518,0.00013991,104390.0,104380.0,1.63813132]
[1748786616972,0.00013991,104390.0,104380.0,1.68813132]
[1748786617848,0.00013991,104390.0,104380.0,1.69484952]
[1748786618073,0.00013991,104390.0,104380.0,1.63813132]
[1748786618282,0.00013991,104390.0,104380.0,1.70130088]
[1748786618695,0.00013991,104390.0,104380.0,1.70801796]
[1748786618920,0.00013991,104390.0,104380.0,1.73948342]
[1748786619146,0.00013991,104390.0,104380.0,1.69820049]
[1748786619375,0.00013991,104390.0,104380.0,1.69620049]
[1748786619609,0.00013991,104390.0,104380.0,1.69620122]
[1748786619895,0.00013991,104390.0,104380.0,1.73934004]
[1748786620329,0.00013991,104390.0,104380.0,1.74238186]
[1748786620541,0.00013991,104390.0,104380.0,1.7423813]
[1748786620753,0.00013991,104390.0,104380.0,1.71100108]
[1748786621221,0.00013991,104390.0,104380.0,1.76099511]
[1748786621436,0.00013991,104390.0,104380.0,1.71099511]
[1748786621895,0.00013991,104390.0,104380.0,1.68085629]
[1748786622107,0.00013991,104390.0,104380.0,1.67785629]
[1748786622321,0.00013991,104390.0,104380.0,1.67116743]
[1748786622535,0.00013991,104390.0,104380.0,1.68685635]
[1748786622740,0.00013991,104390.0,104380.0,2.10053635]
[1748786623719,0.00013991,104390.0,104380.0,2.10053612]
[1748786624140,0.00013991,104390.0,104380.0,2.10053804]
[1748786624318,0.00013991,104390.0,104380.0,2.39363802]
[1748786624545,0.00013991,104390.0,104380.0,2.38694743]
[1748786624731,0.00013991,104390.0,104380.0,2.39919943]
[1748786624899,0.00013991,104390.0,104380.0,2.40588999]
[1748786625104,0.00013991,104390.0,104380.0,2.39919943]
[1748786625286,0.00013991,104390.0,104380.0,2.40589016]
[1748786625498,0.00013991,104390.0,104380.0,2.02513016]
[1748786625714,0.00013991,104390.0,104380.0,2.40649016]
[1748786625879,0.00013991,104390.0,104380.0,2.39979943]
[1748786626099,0.00013991,104390.0,104380.0,2.40645266]
[1748786626321,0.00013991,104390.0,104380.0,2.40645267]
[1748786626525,0.00013991,104390.0,104380.0,2.39970192]
[1748786627990,0.11140787,104410.0,104400.0,0.2203054]
[1748786628200,0.11150105,104410.0,104400.0,0.6975597]
[1748786628346,0.11150105,104410.0,104400.0,0.70425306]
[1748786628546,0.09234727,104410.0,104400.0,0.6975597]
[1748786628976,0.10192416,104410.0,104400.0,0.6975597]
[1748786629172,0.02557007,104410.0,104400.0,0.75625289]
[1748786629378,0.01599318,104410.0,104400.0,0.71410055]
[1748786629589,9.318e-05,104410.0,104400.0,1.17891912]
[1748786629827,9.318e-05,104410.0,104400.0,1.17891911]
[1748786630020,9.318e-05,104410.0,104400.0,1.17222584]
[1748786630428,9.318e-05,104410.0,104400.0,1.17528997]
[1748786630642,9.318e-05,104410.0,104400.0,1.18198296]
[1748786630843,9.318e-05,104410.0,104400.0,1.17528997]
[1748786631059,9.318e-05,104410.0,104400.0,1.18198295]
[1748786631284,9.318e-05,104410.0,104400.0,1.17528997]
[1748786631888,9.318e-05,104410.0,104400.0,1.23198297]
[1748786632152,9.318e-05,104410.0,104400.0,1.17528997]
[1748786632797,9.318e-05,104410.0,104400.0,1.97191526]
[1748786633007,9.318e-05,104410.0,104400.0,2.11129538]
[1748786633221,9.318e-05,104410.0,104400.0,2.06800093]
[1748786633439,9.318e-05,104410.0,104400.0,2.11129538]
[1748786633677,9.318e-05,104410.0,104400.0,2.11800008]
[1748786634101,9.318e-05,104410.0,104400.0,2.1277704]
[1748786634524,9.318e-05,104410.0,104400.0,1.73637046]
[1748786634737,9.318e-05,104410.0,104400.0,1.60652505]
[1748786634975,9.318e-05,104410.0,104400.0,1.5965246]
[1748786635163,9.318e-05,104410.0,104400.0,1.59182917]
[1748786635395,0.06850206,104430.0,104420.0,0.21068695]
[1748786635604,0.05892627,104430.0,104420.0,0.3161174]
[1748786635805,0.05892627,104430.0,104420.0,0.31323833]
[1748786636053,0.05892627,104430.0,104420.0,0.296965]
[1748786636373,0.25044211,104430.0,104420.0,0.29696509]
[1748786636469,0.25044211,104430.0,104420.0,0.30654161]
[1748786636689,0.25044211,104430.0,104420.0,0.29408623]
[1748786636911,0.23129154,104430.0,104420.0,0.29408623]
[1748786637128,0.23129154,104430.0,104420.0,0.10255205]
[1748786637340,0.23129154,104430.0,104420.0,0.15255347]
[1748786637573,0.23129154,104430.0,104420.0,0.15255352]
[1748786637773,0.23129154,104430.0,104420.0,0.10255352]
[1748786637998,0.23129154,104430.0,104420.0,0.13579347]
[1748786639162,0.23129154,104430.0,104420.0,0.14434361]
[1748786639401,0.23129154,104430.0,104420.0,0.19434361]
[1748786639626,0.23129154,104430.0,104420.0,0.14434362]
[1748786639832,0.23129154,104430.0,104420.0,0.1376428]
[1748786640008,0.23129154,104430.0,104420.0,0.10440285]
[1748786640802,0.23129154,104430.0,104420.0,0.10073953]
[1748786641649,0.23129154,104430.0,104420.0,0.15073953]
[1748786641861,0.23129154,104430.0,104420.0,0.00488523]
[1748786642516,0.23129154,104430.0,104420.0,0.007949]
[1748786642655,0.23129154,104430.0,104420.0,0.0146532]
[1748786642857,0.23129154,104430.0,104420.0,0.007949]
[1748786643064,0.23129154,104430.0,104420.0,0.01465314]
[1748786643271,0.23129154,104430.0,104420.0,0.01465272]
[1748786643586,0.23129154,104430.0,104420.0,0.01465221]
[1748786643784,0.23129154,104430.0,104420.0,0.03718661]
[1748786643998,0.23129154,104430.0,104420.0,0.0804834]
[1748786644196,0.23129154,104430.0,104420.0,0.03718812]
[1748786644451,0.23129154,104430.0,104420.0,0.03718904]
[1748786644657,0.23129154,104430.0,104420.0,0.06465462]
[1748786644860,0.23129154,104430.0,104420.0,0.01465569]
[1748786644985,0.86365154,104430.0,104420.0,0.00977046]
[1748786645188,0.86365154,104430.0,104420.0,0.00306377]
[1748786645601,0.95273154,104430.0,104420.0,0.00306377]
[1748786645814,1.04524276,104430.0,104420.0,0.00306377]
[1748786646263,1.04724276,104430.0,104420.0,0.00306377]
[1748786646540,1.04524276,104430.0,104420.0,0.00306377]
[1748786647628,1.04824276,104430.0,104420.0,0.00306377]
[1748786648032,1.04524276,104430.0,104420.0,0.00306377]
[1748786648348,1.04924276,104430.0,104420.0,0.00306377]
[1748786649930,0.2369054,104400.0,104390.0,0.28710131]
[1748786650086,0.2369054,104400.0,104390.0,0.38975021]
[1748786650308,0.2369054,104400.0,104390.0,0.38974903]
[1748786651135,0.2369054,104400.0,104390.0,0.38974739]
[1748786651544,0.2369054,104400.0,104390.0,0.38974741]
[1748786651776,0.2369054,104400.0,104390.0,0.18857998]
[1748786651975,0.2369054,104400.0,104390.0,0.18858021]
[1748786652226,0.2369054,104400.0,104390.0,0.3897488]
[1748786652792,0.2369054,104400.0,104390.0,0.32297389]
[1748786653007,0.2369054,104400.0,104390.0,0.32603836]
[1748786653216,0.2369054,104400.0,104390.0,0.33561723]
[1748786653445,0.2369054,104400.0,104390.0,0.3356164]
[1748786653978,0.2369054,104400.0,104390.0,0.32891827]
[1748786654250,0.2369054,104400.0,104390.0,0.33561641]
[1748786654438,0.2369054,104400.0,104390.0,0.3356166]
[1748786654845,0.2369054,104400.0,104390.0,0.33561652]
[1748786655570,0.2369054,104400.0,104390.0,0.33561621]
[1748786655793,0.03575607,104400.0,104390.0,0.42895162]
[1748786656042,0.03831297,104400.0,104390.0,0.36059521]
[1748786656279,0.22166838,104410.0,104400.0,0.22030558]
[1748786656280,0.02467735,104410.0,104400.0,0.22030558]
[1748786656508,0.23538439,104410.0,104400.0,0.3824356]
[1748786656740,0.22026283,104420.0,104410.0,0.25113006]
[1748786656959,0.22578713,104420.0,104410.0,0.29410429]
[1748786657171,0.22578713,104420.0,104410.0,0.3036797]
[1748786657357,0.22578713,104420.0,104410.0,0.30368069]
[1748786657818,0.22578713,104420.0,104410.0,0.30368076]
[1748786658038,0.2162107,104420.0,104410.0,0.10255061]
[1748786658450,0.2182107,104420.0,104410.0,0.11212895]
[1748786658663,0.2031107,104420.0,104410.0,0.32865896]
[1748786658867,0.2031107,104420.0,104410.0,0.32865895]
[1748786659071,0.2031107,104420.0,104410.0,0.32865897]
[1748786659489,0.19353418,104420.0,104410.0,0.12752891]
[1748786659891,0.19353418,104420.0,104410.0,0.10255126]
[1748786660099,0.20863418,104420.0,104410.0,0.10255131]
[1748786660509,0.20863418,104420.0,104410.0,0.102552]
[1748786660718,0.20863418,104420.0,104410.0,0.10255208]
[1748786660923,0.20863418,104420.0,104410.0,0.10255209]
[1748786661133,0.20863418,104420.0,104410.0,0.0958543]
[1748786661282,0.20863418,104420.0,104410.0,0.10255211]
[1748786661497,0.20863418,104420.0,104410.0,0.0958543]
[1748786661735,0.20863418,104420.0,104410.0,0.10255212]
[1748786662003,0.20863418,104420.0,104410.0,0.13944188]
[1748786662840,0.20863418,104420.0,104410.0,0.1394426]
[1748786663013,0.20863418,104420.0,104410.0,0.13274406]
[1748786663175,0.20863418,104420.0,104410.0,0.13944252]
[1748786663377,0.20863418,104420.0,104410.0,0.13274406]
[1748786663606,0.20863418,104420.0,104410.0,0.1394431]
[1748786663801,0.20863418,104420.0,104410.0,0.13274406]
[1748786664010,0.20863418,104420.0,104410.0,0.15561942]
[1748786664212,0.20863418,104420.0,104410.0,0.09891833]
[1748786664372,0.20863418,104420.0,104410.0,0.15561997]
[1748786664578,0.19353418,104420.0,104410.0,0.10561997]
[1748786664777,0.19353418,104420.0,104410.0,0.10562263]
[1748786665040,0.19353418,104420.0,104410.0,0.14120233]
[1748786665250,0.20963418,104420.0,104410.0,0.14120233]
[1748786665857,0.20963418,104420.0,104410.0,0.14120271]
[1748786666054,0.20963418,104420.0,104410.0,0.10562305]
[1748786666455,0.20963418,104420.0,104410.0,0.09891833]
[1748786666661,0.20963418,104420.0,104410.0,0.1056235]
[1748786666884,0.20963418,104420.0,104410.0,0.10562348]
[1748786667642,0.20963418,104420.0,104410.0,0.10562631]
[1748786668075,0.22463418,104420.0,104410.0,0.15562641]
[1748786668301,0.22463418,104420.0,104410.0,0.10562697]
[1748786668719,0.22463418,104420.0,104410.0,0.09891833]
[1748786668929,0.22463418,104420.0,104410.0,0.10562861]
[1748786669127,0.22463418,104420.0,104410.0,0.10562864]
[1748786669579,0.22463418,104420.0,104410.0,0.11052657]
[1748786670642,0.22463418,104420.0,104410.0,0.10381626]
[1748786670848,0.22463418,104420.0,104410.0,0.11052729]
[1748786671057,0.22463418,104420.0,104410.0,0.10381626]
[1748786671468,0.22463418,104420.0,104410.0,0.1105277]
[1748786671668,0.22463418,104420.0,104410.0,0.10381626]
[1748786671799,0.22463418,104420.0,104410.0,0.15381626]
[1748786672006,0.22463418,104420.0,104410.0,0.11052764]
[1748786672236,0.22463418,104420.0,104410.0,0.10381626]
[1748786672448,0.22463418,104420.0,104410.0,0.11052769]
[1748786672449,0.51711418,104420.0,104410.0,0.11052769]
[1748786672663,0.51711418,104420.0,104410.0,0.10381626]
[1748786672876,0.51711418,104420.0,104410.0,0.12090936]
[1748786673113,0.51711418,104420.0,104410.0,0.11419789]
[1748786673950,0.51711418,104420.0,104410.0,0.11787302]
[1748786674373,0.51711418,104420.0,104410.0,0.17458571]
[1748786674601,0.51711418,104420.0,104410.0,0.11787302]
[1748786674798,0.51711418,104420.0,104410.0,0.12458633]
[1748786674999,0.51711418,104420.0,104410.0,0.16787302]
[1748786675203,0.51711418,104420.0,104410.0,0.11787302]
[1748786675553,0.22463418,104420.0,104410.0,0.11419789]
[1748786675757,0.51703418,104420.0,104410.0,0.11419789]
[1748786675949,0.51703418,104420.0,104410.0,0.12091106]
[1748786676191,0.20963418,104420.0,104410.0,0.12091106]
[1748786676997,0.20963418,104420.0,104410.0,0.12762392]
[1748786677198,0.20963418,104420.0,104410.0,0.12091106]
[1748786677406,0.20963418,104420.0,104410.0,0.12762394]
[1748786678179,0.20963418,104420.0,104410.0,0.12762396]
[1748786678386,0.20963418,104420.0,104410.0,0.12091106]
[1748786678588,0.20963418,104420.0,104410.0,0.12762428]
[1748786678994,0.20963418,104420.0,104410.0,0.12762429]
[1748786680172,0.20963418,104420.0,104410.0,0.12762449]
[1748786680574,0.20963418,104420.0,104410.0,0.12762518]
[1748786680767,0.20963418,104420.0,104410.0,0.12091106]
[1748786681020,0.20963418,104420.0,104410.0,0.11724355]
[1748786681406,0.20963418,104420.0,104410.0,0.11724446]
[1748786681772,0.20963418,104420.0,104410.0,0.11724448]
[1748786682300,0.20963418,104420.0,104410.0,0.11724447]
[1748786682500,0.20963418,104420.0,104410.0,0.11724568]
[1748786683246,0.20963418,104420.0,104410.0,0.1516827]
[1748786683675,0.20963418,104420.0,104410.0,0.11724568]
[1748786683887,0.20963418,104420.0,104410.0,0.11052943]
[1748786684100,0.20963418,104420.0,104410.0,0.11724689]
[1748786684340,0.20963418,104420.0,104410.0,0.11052943]
[1748786684787,0.20963418,104420.0,104410.0,0.11724957]
[1748786685186,0.20963418,104420.0,104410.0,0.15168699]
[1748786685418,0.20963418,104420.0,104410.0,0.15169206]
[1748786685651,0.20963418,104420.0,104410.0,0.14496685]
[1748786685791,0.20963418,104420.0,104410.0,0.15169206]
[1748786686228,0.20963418,104420.0,104410.0,0.15169197]
[1748786686766,0.20963418,104420.0,104410.0,0.15169198]
[1748786687230,0.20963418,104420.0,104410.0,0.15169197]
[1748786687447,0.20963418,104420.0,104410.0,0.15169191]
[1748786687707,0.22226356,104420.0,104410.0,0.82989381]
[1748786687906,0.23183953,104420.0,104410.0,0.39685133]
[1748786688134,0.23183953,104420.0,104410.0,0.38727417]
[1748786688135,0.22226356,104420.0,104410.0,0.38727417]
[1748786688359,0.22226356,104420.0,104410.0,0.40357381]
[1748786688564,0.04030581,104420.0,104410.0,0.41315046]
[1748786689112,0.04030581,104420.0,104410.0,0.41315047]
[1748786689316,0.04988251,104420.0,104410.0,0.41314934]
[1748786689528,0.23184044,104420.0,104410.0,0.39867443]
[1748786690509,0.23184044,104420.0,104410.0,0.4082515]
[1748786690714,0.23184044,104420.0,104410.0,0.40825066]
[1748786691500,0.23184044,104420.0,104410.0,0.4582502]
[1748786691704,0.23184044,104420.0,104410.0,0.4082502]
[1748786692488,0.23184044,104420.0,104410.0,0.45824973]
[1748786692707,0.23184044,104420.0,104410.0,0.40824973]
[1748786693282,0.23184044,104420.0,104410.0,0.40824936]
[1748786694147,0.04030626,104420.0,104410.0,0.40824936]
[1748786694348,0.04030626,104420.0,104410.0,0.40824903]
[1748786694555,0.04030626,104420.0,104410.0,0.41782601]
[1748786694764,0.02115267,104420.0,104410.0,0.41782601]
[1748786695420,0.002,104420.0,104410.0,0.92259215]
[1748786696269,0.03830122,104430.0,104420.0,0.30196319]
[1748786696475,0.03830122,104430.0,104420.0,0.42013007]
[1748786696670,0.02872562,104430.0,104420.0,0.42012794]
[1748786697106,0.02872562,104430.0,104420.0,0.42012793]
[1748786697253,0.03830113,104430.0,104420.0,0.42012793]
[1748786697485,0.03830113,104430.0,104420.0,0.42012656]
[1748786697686,0.02872562,104430.0,104420.0,0.86035165]
[1748786698207,0.02872562,104430.0,104420.0,0.37012636]
[1748786698208,0.03830122,104430.0,104420.0,0.37012636]
[1748786698413,0.02872562,104430.0,104420.0,0.37012636]
[1748786698615,0.02872562,104430.0,104420.0,0.36341342]
[1748786698799,0.02872562,104430.0,104420.0,0.37012317]
[1748786699156,0.02872562,104430.0,104420.0,0.37012315]
[1748786699349,0.02872562,104430.0,104420.0,0.37012155]
[1748786700076,0.02872562,104430.0,104420.0,0.37012156]
[1748786700295,0.03830122,104430.0,104420.0,0.36341342]
[1748786700511,0.03830122,104430.0,104420.0,0.34801342]
[1748786700660,0.03830122,104430.0,104420.0,0.32954965]
[1748786700862,0.04787692,104430.0,104420.0,0.3391258]
[1748786701310,0.02872562,104430.0,104420.0,0.36490186]
[1748786701468,0.03830122,104430.0,104420.0,0.35819364]
[1748786701675,0.02872562,104430.0,104420.0,0.3649017]
[1748786701908,0.03830122,104430.0,104420.0,0.3649017]
[1748786702593,0.03830122,104430.0,104420.0,0.36490067]
[1748786703521,0.04787692,104430.0,104420.0,0.36490067]
[1748786703737,0.04787692,104430.0,104420.0,0.36490039]
[1748786703938,0.04787692,104430.0,104420.0,0.35819364]
[1748786704148,0.04787766,104430.0,104420.0,0.33241758]
[1748786704348,0.04787766,104430.0,104420.0,0.34218771]
[1748786704801,0.04787766,104430.0,104420.0,0.31631113]
[1748786704802,0.24501835,104430.0,104420.0,0.31631113]
[1748786704993,0.03830251,104430.0,104420.0,0.32588735]
[1748786705331,0.03830251,104430.0,104420.0,0.34178738]
[1748786705693,0.03830251,104430.0,104420.0,0.34178748]
[1748786705914,0.03830251,104430.0,104420.0,0.35136362]
[1748786706096,0.02872672,104430.0,104420.0,0.35136362]
[1748786706315,0.02872672,104430.0,104420.0,0.35136326]
[1748786706522,0.02872672,104430.0,104420.0,0.401363]
[1748786706724,0.03830251,104430.0,104420.0,0.35136296]
[1748786707124,0.03830251,104430.0,104420.0,0.35136298]
[1748786707316,0.03830251,104430.0,104420.0,0.34178683]
[1748786707750,0.03830251,104430.0,104420.0,0.35136298]
[1748786708179,0.03830251,104430.0,104420.0,0.34178685]
[1748786708381,0.03830251,104430.0,104420.0,0.35136315]
[1748786708616,0.03830251,104430.0,104420.0,0.34465725]
[1748786708832,0.03830251,104430.0,104420.0,0.35136315]
[1748786709054,0.23574293,104430.0,104420.0,0.30673441]
[1748786709276,0.23574293,104430.0,104420.0,0.3230174]
[1748786709730,0.23574293,104430.0,104420.0,0.33259407]
[1748786709858,0.23574293,104430.0,104420.0,0.34217041]
[1748786710328,0.23574293,104430.0,104420.0,0.34217071]
[1748786710541,0.22024293,104430.0,104420.0,0.34217071]
[1748786710965,0.22024293,104430.0,104420.0,0.34217091]
[1748786711184,0.22024293,104430.0,104420.0,0.3421709]
[1748786711414,0.22024293,104430.0,104420.0,0.34217132]
[1748786712028,0.22024293,104430.0,104420.0,0.34217155]
[1748786712242,0.22024293,104430.0,104420.0,0.3354637]
[1748786712708,0.21066733,104430.0,104420.0,0.34217213]
[1748786712948,0.21066733,104430.0,104420.0,0.3518637]
[1748786713153,0.21066733,104430.0,104420.0,0.34217238]
[1748786713811,0.21066733,104430.0,104420.0,0.34217239]
[1748786714031,0.21066733,104430.0,104420.0,0.3421724]
[1748786714427,0.21066733,104430.0,104420.0,0.3371724]
[1748786714663,0.22636733,104430.0,104420.0,0.33717241]
[1748786714881,0.22636733,104430.0,104420.0,0.34003995]
[1748786715140,0.22636733,104430.0,104420.0,0.3304637]
[1748786715350,0.21066733,104430.0,104420.0,0.33717358]
[1748786715972,0.21066733,104430.0,104420.0,0.33717463]
[1748786716362,0.21066733,104430.0,104420.0,0.33717466]
[1748786717088,0.21066733,104430.0,104420.0,0.33717485]
[1748786717524,0.01915149,104430.0,104420.0,0.39003976]
[1748786717652,0.01915149,104430.0,104420.0,0.36195081]
[1748786718267,0.01915149,104430.0,104420.0,0.36195091]
[1748786718472,0.01915149,104430.0,104420.0,0.36195151]
[1748786718922,0.01915149,104430.0,104420.0,0.36195152]
[1748786719563,0.01915149,104430.0,104420.0,0.361952]
[1748786719763,0.21066733,104430.0,104420.0,0.3304637]
[1748786720004,0.21066733,104430.0,104420.0,0.33717594]
[1748786720220,0.21066733,104430.0,104420.0,0.35237594]
[1748786720421,0.21066733,104430.0,104420.0,0.3456637]
[1748786720641,0.21066733,104430.0,104420.0,0.36195274]
[1748786720851,0.21066733,104430.0,104420.0,0.35237649]
[1748786721063,0.21066733,104430.0,104420.0,0.34280015]
[1748786721511,0.21066733,104430.0,104420.0,0.33717719]
[1748786721708,0.21066733,104430.0,104420.0,0.33717741]
[1748786722845,0.22576733,104430.0,104420.0,0.33717842]
[1748786723072,0.23179163,104430.0,104420.0,0.10733834]
[1748786723292,0.30272878,104430.0,104420.0,0.10733834]
[1748786723513,0.30272878,104430.0,104420.0,0.01648404]
[1748786724781,0.30272878,104430.0,104420.0,0.00976932]
[1748786725001,0.22221584,104430.0,104420.0,0.00976932]
[1748786725218,0.22221584,104430.0,104420.0,0.01648666]
[1748786725938,0.22221584,104430.0,104420.0,0.00976932]
[1748786726157,0.22221584,104430.0,104420.0,0.01648749]
[1748786726373,0.22421584,104430.0,104420.0,0.01648752]
[1748786726607,0.22421584,104430.0,104420.0,0.0164874]
[1748786727138,0.3039712,104430.0,104420.0,0.01648543]
[1748786727344,0.3039712,104430.0,104420.0,0.01648525]
[1748786727776,0.3039712,104430.0,104420.0,0.01648316]
[1748786728135,0.3039712,104430.0,104420.0,0.01648259]
[1748786728350,0.3039712,104430.0,104420.0,0.00976932]
[1748786728575,0.3039712,104430.0,104420.0,0.0164823]
[1748786728803,0.3039712,104430.0,104420.0,0.00976932]
[1748786728930,0.3039712,104430.0,104420.0,0.01648252]
[1748786729338,0.3039712,104430.0,104420.0,0.02015777]
[1748786729687,0.3039712,104430.0,104420.0,0.0201565]
[1748786730307,0.3039712,104430.0,104420.0,0.02015651]
[1748786730886,0.6439712,104430.0,104420.0,0.01344457]
[1748786731052,0.6439712,104430.0,104420.0,0.02015656]
[1748786731278,0.6439712,104430.0,104420.0,0.02015608]
[1748786731895,0.6439712,104430.0,104420.0,0.02015498]
[1748786732074,0.6439712,104430.0,104420.0,0.01344457]
[1748786732632,0.6439712,104430.0,104420.0,0.00976932]
[1748786733617,0.6439712,104430.0,104420.0,0.01647979]
[1748786733822,0.20861584,104430.0,104420.0,0.01647979]
[1748786734025,0.20861584,104430.0,104420.0,0.06647698]
[1748786734327,0.20861584,104430.0,104420.0,0.06647695]
[1748786734525,0.19351584,104430.0,104420.0,0.03197588]
[1748786734720,0.19351584,104430.0,104420.0,0.0511664]
[1748786735048,0.19351584,104430.0,104420.0,0.17112362]
[1748786735483,0.19351584,104430.0,104420.0,0.18622362]
[1748786735691,0.19351584,104430.0,104420.0,0.19292958]
[1748786735921,0.19351584,104430.0,104420.0,0.41606351]
[1748786735922,0.02115093,104430.0,104420.0,0.41606351]
[1748786736199,0.01157505,104430.0,104420.0,0.8562888]
[1748786736406,0.0403014,104430.0,104420.0,0.8562888]
[1748786736612,0.0403014,104430.0,104420.0,0.86299176]
[1748786736829,0.0403014,104430.0,104420.0,0.8562888]
[1748786737033,0.0403014,104430.0,104420.0,0.86299097]
[1748786737472,0.0403014,104430.0,104420.0,0.8562888]
[1748786737674,0.0403014,104430.0,104420.0,0.86299085]
[1748786737882,0.0403014,104430.0,104420.0,0.8562888]
[1748786738146,0.0403014,104430.0,104420.0,0.86299085]
[1748786738351,0.0403014,104430.0,104420.0,0.8562888]
[1748786738968,0.0307258,104430.0,104420.0,0.86299049]
[1748786739173,0.0307258,104430.0,104420.0,0.86299047]
[1748786739174,0.0403014,104430.0,104420.0,0.86299047]
[1748786739392,0.0307258,104430.0,104420.0,0.86299004]
[1748786739528,0.0307258,104430.0,104420.0,0.42276441]
[1748786739731,0.0403014,104430.0,104420.0,0.42276441]
[1748786740850,0.002,104430.0,104420.0,0.87752993]
[1748786741065,0.002,104430.0,104420.0,0.87752975]
[1748786741498,0.01157496,104430.0,104420.0,0.87752924]
[1748786741706,0.01157496,104430.0,104420.0,0.38730354]
[1748786741891,0.02115011,104430.0,104420.0,0.38730354]
[1748786742091,0.01915011,104430.0,104420.0,0.38730356]
[1748786742307,0.01915011,104430.0,104420.0,0.37276271]
[1748786742594,0.01915011,104430.0,104420.0,0.37376271]
[1748786742928,0.01915011,104430.0,104420.0,0.37376114]
[1748786743165,0.00957496,104430.0,104420.0,0.42476114]
[1748786743566,0.00957496,104430.0,104420.0,0.42476096]
[1748786743888,0.00957496,104430.0,104420.0,0.86498614]
[1748786744284,0.00957496,104430.0,104420.0,0.86498596]
[1748786744502,0.01915001,104430.0,104420.0,0.86498596]
[1748786744705,0.01915001,104430.0,104420.0,0.86498591]
[1748786745407,0.01915001,104430.0,104420.0,0.86498543]
[1748786745645,0.01915001,104430.0,104420.0,0.86498544]
[1748786745853,0.01915001,104430.0,104420.0,0.8582888]
[1748786746976,0.01915001,104430.0,104420.0,0.86498498]
[1748786747186,0.01915001,104430.0,104420.0,0.8582888]
[1748786748510,0.01915001,104430.0,104420.0,0.86498424]
[1748786748935,0.00957496,104430.0,104420.0,0.8582888]
[1748786749370,0.00957496,104430.0,104420.0,0.86498418]
[1748786749496,0.22022323,104440.0,104430.0,0.27024238]
[1748786749701,0.22022323,104440.0,104430.0,0.38149668]
[1748786750041,0.2297981,104440.0,104430.0,0.38149668]
[1748786750248,0.2297981,104440.0,104430.0,0.38819158]
[1748786750456,0.2297981,104440.0,104430.0,0.38149668]
[1748786750673,0.2297981,104440.0,104430.0,0.38819157]
[1748786750877,0.2297981,104440.0,104430.0,0.38149668]
[1748786751509,0.02872351,104440.0,104430.0,0.38149668]
[1748786751685,0.03689838,104440.0,104430.0,0.38149668]
[1748786751914,0.03689838,104440.0,104430.0,0.388191]
[1748786752114,0.03689838,104440.0,104430.0,0.38149668]
[1748786752314,0.03689838,104440.0,104430.0,0.388191]
[1748786752529,0.03689838,104440.0,104430.0,0.38149668]
[1748786752732,0.03689838,104440.0,104430.0,0.38819039]
[1748786752933,0.03689838,104440.0,104430.0,0.38149668]
[1748786753133,0.03689838,104440.0,104430.0,0.38819028]
[1748786753330,0.03689838,104440.0,104430.0,0.38819032]
[1748786753478,0.03689838,104440.0,104430.0,0.3881903]
[1748786753676,0.03689838,104440.0,104430.0,0.43153003]
[1748786753909,0.03689838,104440.0,104430.0,0.39125279]
[1748786754143,0.03689838,104440.0,104430.0,0.38456001]
[1748786754866,0.03689838,104440.0,104430.0,0.39125263]
[1748786755075,0.03689838,104440.0,104430.0,0.39125243]
[1748786755499,0.03689838,104440.0,104430.0,0.38167719]
[1748786755745,0.03689838,104440.0,104430.0,0.33456019]
[1748786755746,0.22839589,104440.0,104430.0,0.33456019]
[1748786755969,0.21882166,104440.0,104430.0,0.33542797]
[1748786756180,0.21882166,104440.0,104430.0,0.3162778]
[1748786756418,0.23542166,104440.0,104430.0,0.31916019]
[1748786756601,0.23542166,104440.0,104430.0,0.32585319]
[1748786756803,0.23542166,104440.0,104430.0,0.37585319]
[1748786757048,0.23542166,104440.0,104430.0,0.33542852]
[1748786757271,0.23542166,104440.0,104430.0,0.32873552]
[1748786757484,0.23542166,104440.0,104430.0,0.33542889]
[1748786757705,0.23542166,104440.0,104430.0,0.33543]
[1748786757930,0.23542166,104440.0,104430.0,0.31916019]
[1748786758388,0.22724716,104440.0,104430.0,0.30958477]
[1748786759771,0.22724716,104440.0,104430.0,0.31628077]
[1748786759977,0.22724716,104440.0,104430.0,0.32585619]
[1748786760552,0.22724716,104440.0,104430.0,0.32585617]
[1748786760967,0.22724716,104440.0,104430.0,0.31628074]
[1748786761215,0.22724716,104440.0,104430.0,0.31628483]
[1748786762118,0.22724716,104440.0,104430.0,0.30958477]
[1748786762334,0.22724716,104440.0,104430.0,0.32117613]
[1748786763312,0.22724716,104440.0,104430.0,0.32117747]
[1748786763816,0.22724716,104440.0,104430.0,0.32117746]
[1748786764021,0.22724716,104440.0,104430.0,0.3663]
[1748786764284,0.21064716,104440.0,104430.0,0.36629997]
[1748786764531,0.21064716,104440.0,104430.0,0.38170002]
[1748786764773,0.21064716,104440.0,104430.0,0.33170004]
[1748786765125,0.21064716,104440.0,104430.0,0.31630004]
[1748786766221,0.0095745,104440.0,104430.0,0.38545059]
[1748786766454,0.13600015,104450.0,104440.0,0.27022102]
[1748786766690,0.13600015,104450.0,104440.0,0.35364114]
[1748786766691,0.6293581,104450.0,104440.0,0.35364114]
[1748786766916,0.62935874,104450.0,104440.0,0.34692659]
[1748786767134,0.62935874,104450.0,104440.0,0.35650128]
[1748786767354,0.62935874,104450.0,104440.0,0.36593166]
[1748786767771,0.62935874,104450.0,104440.0,0.37264543]
[1748786767918,0.61978552,104450.0,104440.0,0.36593166]
[1748786768259,0.61978552,104450.0,104440.0,0.37264527]
[1748786768552,0.61021202,104450.0,104440.0,0.34692659]
[1748786769271,0.61221202,104450.0,104440.0,0.35364003]
[1748786769673,0.61221202,104450.0,104440.0,0.35364053]
[1748786769865,0.10309908,104450.0,104440.0,1.21124694]